fUST/lending_fUST_20250522
["ID","MTS","AMOUNT","RATE_DAILY","PERIOD"]
[361917147,1747889446638,-430.0,0.00023013,2]
[361917149,1747889446647,-1732.63,0.00023013,2]
[361917151,1747889446657,-430.0,0.00023013,2]
[361917154,1747889446667,-430.0,0.00023013,2]
[361917156,1747889446676,-430.0,0.00023013,2]
[361917157,1747889446685,-1000.0,0.00023016,2]
[361917160,1747889446695,-638.20879264,0.00023016,2]
[361917162,1747889446707,-1001.12886528,0.00023016,2]
[361917164,1747889446716,-1660.30624673,0.00023038,8]
[361917166,1747889446726,-358.90605806,0.00023048,2]
[361917168,1747889446736,-1000.0,0.00023048,2]
[361917170,1747889446745,-1000.8704939,0.00023048,2]
[361917172,1747889446755,-1000.0,0.00023048,2]
[361917174,1747889446764,-563.04989174,0.00023048,2]
[361917176,1747889446774,-1001.15011034,0.00023048,2]
[361917178,1747889446783,-1000.69058986,0.00023086,2]
[361917180,1747889446793,-1010.34852641,0.00023086,2]
[361917182,1747889446803,-1003.45068481,0.00023086,2]
[361917184,1747889446812,-1010.95671398,0.00023086,2]
[361917186,1747889446822,-1001.05278464,0.00023089,2]
[361917188,1747889446833,-503.5411852,0.00023089,2]
[361917190,1747889446842,-1000.0,0.00023089,2]
[361917192,1747889446852,-1113.60087583,0.00023089,2]
[361917194,1747889446862,-1000.0,0.00023089,2]
[361917196,1747889446873,-1016.29769984,0.00023098,2]
[361917197,1747889446883,-1000.0,0.00023103,2]
[361917198,1747889446892,-1000.37399013,0.00023114,2]
[361917199,1747889446903,-1000.0,0.00023115,2]
[361917200,1747889447009,-1000.0,0.00023134,2]
[361917201,1747889447019,-1000.0,0.00023134,2]
[361917202,1747889447029,-1000.0,0.00023134,2]
[361917203,1747889447038,-1000.0,0.00023134,2]
[361917204,1747889447048,-679.98910693,0.00023134,2]
[361917205,1747889447057,-1000.0,0.0002314,2]
[361917206,1747889447066,-1003.37702798,0.00023155,2]
[361917207,1747889447076,-509.36773416,0.00023155,2]
[361917208,1747889447086,-1037.95865538,0.00023155,2]
[361917209,1747889447096,-417.51151036,0.00023157,2]
[361917210,1747889447106,-1003.53593631,0.00023157,2]
[361917211,1747889447115,-396.84939606,0.00023157,2]
[361917212,1747889447124,-1000.0,0.00023157,2]
[361917213,1747889447133,-500.5047315,0.00023157,2]
[361917214,1747889447143,-1000.0,0.00023157,2]
[361917215,1747889447153,-1000.98860371,0.00023157,2]
[361917216,1747889447162,-1000.0,0.00023157,2]
[361917217,1747889447171,-1000.55966303,0.00023157,2]
[361917218,1747889447181,-661.18075282,0.00023157,2]
[361917219,1747889447190,-1007.27790022,0.00023157,2]
[361917220,1747889447199,-1660.30624673,0.00023176,8]
[361917221,1747889447209,-5000.0,0.00023235,2]
[361917222,1747889447218,-150.5,0.0002326,120]
[361917223,1747889447227,-150.5,0.0002327,120]
[361917224,1747889447237,-150.5,0.0002328,120]
[361917225,1747889447246,-430.0,0.00023287,2]
[361917226,1747889447255,-430.0,0.00023287,2]
[361917227,1747889447265,-430.0,0.00023287,2]
[361917228,1747889447274,-352.01,0.00023287,2]
[361917229,1747889447283,-430.0,0.00023287,2]
[361917230,1747889447293,-430.0,0.00023287,2]
[361917231,1747889447303,-430.0,0.00023287,2]
[361917232,1747889447312,-430.0,0.00023287,2]
[361917233,1747889447321,-430.0,0.00023287,2]
[361917234,1747889447332,-430.0,0.00023287,2]
[361917235,1747889447342,-514.58,0.00023287,2]
[361917236,1747889447354,-430.0,0.00023287,2]
[361917237,1747889447363,-430.0,0.00023287,2]
[361917238,1747889447373,-430.0,0.00023287,2]
[361917239,1747889447382,-430.0,0.00023287,2]
[361917240,1747889447392,-406.24,0.00023287,2]
[361917241,1747889447401,-430.0,0.00023287,2]
[361917242,1747889447410,-430.0,0.00023287,2]
[361917243,1747889447419,-430.0,0.00023287,2]
[361917244,1747889447428,-18436.43,0.00023287,2]
[361917245,1747889447437,-1264.28,0.00023287,2]
[361917246,1747889447446,-1172.25,0.00023287,2]
[361917247,1747889447456,-430.0,0.00023287,2]
[361917248,1747889447465,-430.0,0.00023287,2]
[361917249,1747889447477,-430.0,0.00023287,2]
[361917250,1747889447487,-581.06,0.00023287,2]
[361917251,1747889447495,-430.0,0.00023287,2]
[361917252,1747889447504,-430.0,0.00023287,2]
[361917253,1747889447514,-1388.96,0.00023287,2]
[361917254,1747889447523,-430.0,0.00023287,2]
[361917255,1747889447532,-426.69435964,0.00023287,2]
[361917256,1747889447541,-764.64,0.00023287,2]
[361917257,1747889447552,-430.0,0.00023287,2]
[361917258,1747889447561,-430.0,0.00023287,2]
[361917259,1747889447571,-430.0,0.00023287,2]
[361917260,1747889447581,-430.0,0.00023287,2]
[361917261,1747889447589,-430.0,0.00023287,2]
[361917262,1747889447599,-430.0,0.00023287,2]
[361917263,1747889447608,-591.15,0.00023287,2]
[361917264,1747889447617,-204.36,0.00023287,2]
[361917265,1747889447626,-2232.82,0.00023287,2]
[361917266,1747889447636,-440.73,0.00023287,2]
[361917267,1747889447645,-430.0,0.00023287,2]
[361917268,1747889447654,-430.0,0.00023287,2]
[361917269,1747889447663,-430.0,0.00023287,2]
[361917270,1747889447672,-430.0,0.00023287,2]
[361917271,1747889447681,-430.0,0.00023287,2]
[361917272,1747889447690,-430.0,0.00023287,2]
[361917273,1747889447700,-452.41,0.00023287,2]
[361917274,1747889447709,-430.0,0.00023287,2]
[361917275,1747889447718,-430.0,0.00023287,2]
[361917276,1747889447727,-430.0,0.00023287,2]
[361917277,1747889447737,-430.0,0.00023287,2]
[361917278,1747889447747,-430.0,0.00023287,2]
[361917279,1747889447759,-506.19,0.00023287,2]
[361917280,1747889447776,-430.0,0.00023287,2]
[361917281,1747889447792,-430.0,0.00023287,2]
[361917282,1747889447802,-430.0,0.00023287,2]
[361917283,1747889447811,-430.0,0.00023287,2]
[361917284,1747889447821,-430.0,0.00023287,2]
[361917285,1747889447831,-430.0,0.00023287,2]
[361917286,1747889447840,-430.0,0.00023287,2]
[361917287,1747889447850,-679.08,0.00023287,2]
[361917288,1747889447859,-756.12,0.00023287,2]
[361917289,1747889447869,-430.0,0.00023287,2]
[361917290,1747889447878,-430.0,0.00023287,2]
[361917291,1747889447888,-430.0,0.00023287,2]
[361917292,1747889447897,-430.0,0.00023287,2]
[361917293,1747889447906,-430.0,0.00023287,2]
[361917294,1747889447916,-1732.63,0.00023287,2]
[361917295,1747889447926,-430.0,0.00023287,2]
[361917296,1747889447936,-430.0,0.00023287,2]
[361917297,1747889447945,-4784.95,0.00023287,2]
[361917298,1747889447955,-430.0,0.00023287,2]
[361917299,1747889447965,-1660.30624673,0.00023314,9]
[361917300,1747889447975,-1660.30624673,0.00023452,9]
[361917301,1747889447985,-155.86,0.00023561,2]
[361917302,1747889447994,-527.12,0.00023561,2]
[361917303,1747889448003,-430.0,0.00023561,2]
[361917304,1747889448013,-430.0,0.00023561,2]
[361917305,1747889448022,-430.0,0.00023561,2]
[361917306,1747889448032,-430.0,0.00023561,2]
[361917307,1747889448042,-430.0,0.00023561,2]
[361917308,1747889448051,-430.0,0.00023561,2]
[361917309,1747889448061,-430.0,0.00023561,2]
[361917310,1747889448070,-514.58,0.00023561,2]
[361917311,1747889448081,-430.0,0.00023561,2]
[361917312,1747889448091,-570.93,0.00023561,2]
[361917313,1747889448101,-332.3888964,0.00023561,2]
[361917314,1747889448110,-228.66,0.00023561,2]
[361917315,1747889448119,-220.53,0.00023561,2]
[361917316,1747889448129,-430.0,0.00023561,2]
[361917317,1747889448139,-430.0,0.00023561,2]
[361917318,1747889448149,-18436.43,0.00023561,2]
[361917319,1747889448159,-1264.28,0.00023561,2]
[361917320,1747889448168,-1172.25,0.00023561,2]
[361917321,1747889448178,-430.0,0.00023561,2]
[361917322,1747889448187,-430.0,0.00023561,2]
[361917323,1747889448196,-430.0,0.00023561,2]
[361917324,1747889448206,-581.06,0.00023561,2]
[361917325,1747889448216,-430.0,0.00023561,2]
[361917326,1747889448226,-398.13,0.00023561,2]
[361917327,1747889448235,-1388.96,0.00023561,2]
[361917328,1747889448244,-430.0,0.00023561,2]
[361917329,1747889448253,-764.64,0.00023561,2]
[361917330,1747889448262,-430.0,0.00023561,2]
[361917331,1747889448273,-430.0,0.00023561,2]
[361917332,1747889448282,-430.0,0.00023561,2]
[361917333,1747889448291,-495.72,0.00023561,2]
[361917334,1747889448301,-183.44,0.00023561,2]
[361917335,1747889448311,-430.0,0.00023561,2]
[361917336,1747889448321,-591.15,0.00023561,2]
[361917337,1747889448332,-2232.82,0.00023561,2]
[361917338,1747889448341,-440.73,0.00023561,2]
[361917339,1747889448351,-430.0,0.00023561,2]
[361917340,1747889448361,-430.0,0.00023561,2]
[361917341,1747889448371,-430.0,0.00023561,2]
[361917342,1747889448381,-430.0,0.00023561,2]
[361917343,1747889448391,-430.0,0.00023561,2]
[361917344,1747889448400,-430.0,0.00023561,2]
[361917345,1747889448411,-430.0,0.00023561,2]
[361917346,1747889448421,-430.0,0.00023561,2]
[361917347,1747889448431,-430.0,0.00023561,2]
[361917348,1747889448440,-430.0,0.00023561,2]
[361917349,1747889448449,-430.0,0.00023561,2]
[361917350,1747889448459,-430.0,0.00023561,2]
[361917351,1747889448471,-430.0,0.00023561,2]
[361917352,1747889448482,-430.0,0.00023561,2]
[361917353,1747889448491,-430.0,0.00023561,2]
[361917354,1747889448501,-430.0,0.00023561,2]
[361917355,1747889448510,-679.08,0.00023561,2]
[361917356,1747889448521,-756.12,0.00023561,2]
[361917357,1747889448531,-430.0,0.00023561,2]
[361917358,1747889448541,-430.0,0.00023561,2]
[361917359,1747889448551,-430.0,0.00023561,2]
[361917360,1747889448561,-430.0,0.00023561,2]
[361917361,1747889448570,-430.0,0.00023561,2]
[361917362,1747889448581,-1732.63,0.00023561,2]
[361917363,1747889448591,-430.0,0.00023561,2]
[361917364,1747889448601,-430.0,0.00023561,2]
[361917365,1747889448611,-430.0,0.00023561,2]
[361917366,1747889448621,-889.7797958,0.00023586,2]
[361917367,1747889448631,-1660.30624673,0.0002359,9]
[361917368,1747889448641,-1009.79337201,0.00023596,2]
[361917369,1747889448651,-1500.0,0.00023596,2]
[361917370,1747889448661,-1500.0,0.00023637,2]
[361917371,1747889448670,-1500.0,0.00023637,2]
[361917372,1747889448679,-435.52355721,0.00023651,2]
[361917373,1747889448689,-561.74789582,0.00023682,2]
[361917374,1747889448699,-152.67002143,0.00023702,2]
[361917375,1747889448708,-151.0,0.00023702,2]
[361917376,1747889448717,-207.4,0.00023702,2]
[361917377,1747889448726,-1002.95954698,0.00023705,2]
[361917378,1747889448738,-1600.86526598,0.00023705,2]
[361917379,1747889448748,-1017.91697295,0.00023705,2]
[361917380,1747889448757,-159.05485592,0.00023726,2]
[361917381,1747889448767,-1660.30624673,0.00023728,9]
[361917382,1747889448777,-420.0,0.00023817,2]
[361917383,1747889448787,-420.0,0.00023817,2]
[361917384,1747889448796,-420.0,0.00023817,2]
[361917385,1747889448806,-430.0,0.00023835,2]
[361917386,1747889448815,-551.25641018,0.00023835,2]
[361917387,1747889448826,-430.0,0.00023835,2]
[361917388,1747889448835,-387.19,0.00023835,2]
[361917389,1747889448845,-159.7911377,0.00023835,2]
[361917390,1747889448955,-430.0,0.00023835,2]
[361917391,1747889448967,-430.0,0.00023835,2]
[361917392,1747889448976,-514.58,0.00023835,2]
[361917393,1747889448986,-430.0,0.00023835,2]
[361917394,1747889448996,-430.0,0.00023835,2]
[361917395,1747889449006,-430.0,0.00023835,2]
[361917396,1747889449016,-18436.43,0.00023835,2]
[361917397,1747889449027,-1264.28,0.00023835,2]
[361917398,1747889449036,-1172.25,0.00023835,2]
[361917399,1747889449045,-430.0,0.00023835,2]
[361917400,1747889449055,-430.0,0.00023835,2]
[361917401,1747889449065,-430.0,0.00023835,2]
[361917402,1747889449075,-581.06,0.00023835,2]
[361917403,1747889449085,-430.0,0.00023835,2]
[361917404,1747889449094,-1388.96,0.00023835,2]
[361917405,1747889449104,-430.0,0.00023835,2]
[361917406,1747889449114,-764.64,0.00023835,2]
[361917407,1747889449124,-430.0,0.00023835,2]
[361917408,1747889449134,-496.06,0.00023835,2]
[361917409,1747889449144,-430.0,0.00023835,2]
[361917410,1747889449154,-430.0,0.00023835,2]
[361917411,1747889449164,-591.15,0.00023835,2]
[361917412,1747889449174,-2232.82,0.00023835,2]
[361917413,1747889449183,-440.73,0.00023835,2]
[361917414,1747889449193,-430.0,0.00023835,2]
[361917415,1747889449202,-430.0,0.00023835,2]
[361917416,1747889449211,-430.0,0.00023835,2]
[361917417,1747889449221,-430.0,0.00023835,2]
[361917418,1747889449230,-430.0,0.00023835,2]
[361917419,1747889449240,-430.0,0.00023835,2]
[361917420,1747889449249,-430.0,0.00023835,2]
[361917421,1747889449260,-167.08486816,0.00023835,2]
[361917422,1747889449270,-430.0,0.00023835,2]
[361917423,1747889449280,-430.0,0.00023835,2]
[361917424,1747889449289,-550.88,0.00023835,2]
[361917425,1747889449298,-430.0,0.00023835,2]
[361917426,1747889449308,-430.0,0.00023835,2]
[361917427,1747889449318,-430.0,0.00023835,2]
[361917428,1747889449327,-160.33,0.00023835,2]
[361917429,1747889449338,-430.0,0.00023835,2]
[361917430,1747889449348,-679.08,0.00023835,2]
[361917431,1747889449357,-756.12,0.00023835,2]
[361917432,1747889449367,-430.0,0.00023835,2]
[361917433,1747889449377,-430.0,0.00023835,2]
[361917434,1747889449387,-430.0,0.00023835,2]
[361917435,1747889449396,-430.0,0.00023835,2]
[361917436,1747889449406,-430.0,0.00023835,2]
[361917437,1747889449415,-1732.63,0.00023835,2]
[361917438,1747889449424,-430.0,0.00023835,2]
[361917439,1747889449434,-430.0,0.00023835,2]
[361917440,1747889449444,-175.56,0.00023835,2]
[361917441,1747889449453,-1660.30624673,0.00023866,10]
[361917442,1747889449463,-159.05485592,0.0002389,2]
[361917443,1747889449475,-1660.30624673,0.00024003,10]
[361917444,1747889449484,-159.05485592,0.00024082,2]
[361917445,1747889449494,-430.0,0.00024109,2]
[361917446,1747889449503,-430.0,0.00024109,2]
[361917447,1747889449514,-352.83404005,0.00024109,2]
[361917448,1747889449524,-479.44,0.00024109,2]
[361917449,1747889449533,-514.58,0.00024109,2]
[361917450,1747889449542,-430.0,0.00024109,2]
[361917451,1747889449554,-430.0,0.00024109,2]
[361917452,1747889449564,-507.74000003,0.00024109,2]
[361917453,1747889449573,-18436.43,0.00024109,2]
[361917454,1747889449583,-1264.28,0.00024109,2]
[361917455,1747889449592,-1172.25,0.00024109,2]
[361917456,1747889449601,-430.0,0.00024109,2]
[361917457,1747889449610,-430.0,0.00024109,2]
[361917458,1747889449619,-430.0,0.00024109,2]
[361917459,1747889449629,-581.06,0.00024109,2]
[361917460,1747889449638,-430.0,0.00024109,2]
[361917461,1747889449648,-489.15391645,0.00024109,2]
[361917462,1747889449657,-1388.96,0.00024109,2]
[361917463,1747889449666,-764.64,0.00024109,2]
[361917464,1747889449675,-430.0,0.00024109,2]
[361917465,1747889449685,-430.0,0.00024109,2]
[361917466,1747889449694,-430.0,0.00024109,2]
[361917467,1747889449704,-591.15,0.00024109,2]
[361917468,1747889449713,-2232.82,0.00024109,2]
[361917469,1747889449723,-440.73,0.00024109,2]
[361917470,1747889449733,-430.0,0.00024109,2]
[361917471,1747889449742,-430.0,0.00024109,2]
[361917472,1747889449751,-430.0,0.00024109,2]
[361917473,1747889449761,-324.78,0.00024109,2]
[361917474,1747889449771,-430.0,0.00024109,2]
[361917475,1747889449781,-430.0,0.00024109,2]
[361917476,1747889449791,-430.0,0.00024109,2]
[361917477,1747889449800,-430.0,0.00024109,2]
[361917478,1747889449810,-570.19,0.00024109,2]
[361917479,1747889449819,-430.0,0.00024109,2]
[361917480,1747889449828,-430.0,0.00024109,2]
[361917481,1747889449838,-430.0,0.00024109,2]
[361917482,1747889449849,-430.0,0.00024109,2]
[361917483,1747889449859,-679.08,0.00024109,2]
[361917484,1747889449869,-756.12,0.00024109,2]
[361917485,1747889449878,-430.0,0.00024109,2]
[361917486,1747889449888,-430.0,0.00024109,2]
[361917487,1747889449898,-171.69,0.00024109,2]
[361917488,1747889449908,-430.0,0.00024109,2]
[361917489,1747889449920,-430.0,0.00024109,2]
[361917490,1747889449929,-1732.63,0.00024109,2]
[361917491,1747889449942,-430.0,0.00024109,2]
[361917492,1747889449952,-261.82,0.00024109,2]
[361917493,1747889449961,-1660.30624673,0.00024141,10]
[361917494,1747889449970,-1016.58093353,0.00024144,2]
[361917495,1747889449979,-504.65730264,0.00024185,2]
[361917496,1747889449989,-889.7797958,0.00024197,2]
[361917497,1747889449998,-500.0,0.00024246,2]
[361917498,1747889450008,-159.05485592,0.00024247,2]
[361917499,1747889450017,-1660.30624673,0.00024279,10]
[361917500,1747889450026,-151.0,0.000243,10]
[361917501,1747889450035,-159.05485592,0.00024356,2]
[361917502,1747889450045,-430.0,0.00024383,2]
[361917503,1747889450054,-430.0,0.00024383,2]
[361917504,1747889450067,-514.58,0.00024383,2]
[361917505,1747889450076,-430.0,0.00024383,2]
[361917506,1747889450088,-430.0,0.00024383,2]
[361917507,1747889450098,-18436.43,0.00024383,2]
[361917508,1747889450107,-1264.28,0.00024383,2]
[361917509,1747889450117,-1172.25,0.00024383,2]
[361917510,1747889450126,-430.0,0.00024383,2]
[361917511,1747889450136,-430.0,0.00024383,2]
[361917512,1747889450145,-430.0,0.00024383,2]
[361917513,1747889450154,-581.06,0.00024383,2]
[361917514,1747889450163,-430.0,0.00024383,2]
[361917515,1747889450172,-1388.96,0.00024383,2]
[361917516,1747889450182,-764.64,0.00024383,2]
[361917517,1747889450192,-437.54966144,0.00024383,2]
[361917518,1747889450203,-430.0,0.00024383,2]
[361917519,1747889450212,-304.16,0.00024383,2]
[361917520,1747889450222,-591.15,0.00024383,2]
[361917521,1747889450231,-2232.82,0.00024383,2]
[361917522,1747889450241,-440.73,0.00024383,2]
[361917523,1747889450250,-430.0,0.00024383,2]
[361917524,1747889450260,-430.0,0.00024383,2]
[361917525,1747889450270,-430.0,0.00024383,2]
[361917526,1747889450279,-430.0,0.00024383,2]
[361917527,1747889450288,-469.79,0.00024383,2]
[361917528,1747889450298,-430.0,0.00024383,2]
[361917529,1747889450308,-430.0,0.00024383,2]
[361917530,1747889450318,-430.0,0.00024383,2]
[361917531,1747889450327,-430.0,0.00024383,2]
[361917532,1747889450338,-430.0,0.00024383,2]
[361917533,1747889450347,-354.71,0.00024383,2]
[361917534,1747889450358,-679.08,0.00024383,2]
[361917535,1747889450368,-756.12,0.00024383,2]
[361917536,1747889450378,-430.0,0.00024383,2]
[361917537,1747889450387,-430.0,0.00024383,2]
[361917538,1747889450396,-430.0,0.00024383,2]
[361917539,1747889450405,-430.0,0.00024383,2]
[361917540,1747889450415,-1732.63,0.00024383,2]
[361917541,1747889450424,-430.0,0.00024383,2]
[361917542,1747889450434,-500.0,0.00024402,2]
[361917543,1747889450443,-500.0,0.00024402,2]
[361917544,1747889450454,-1660.30624673,0.00024417,11]
[361917545,1747889450464,-159.05485592,0.00024438,2]
[361917546,1747889450475,-151.0,0.000245,7]
[361917547,1747889450486,-1344.356281,0.000245,2]
[361917548,1747889450496,-1660.30624673,0.00024555,11]
[361917549,1747889450506,-159.05485592,0.0002463,2]
[361917550,1747889450515,-430.0,0.00024657,2]
[361917551,1747889450525,-430.0,0.00024657,2]
[361917552,1747889450535,-514.58,0.00024657,2]
[361917553,1747889450544,-430.0,0.00024657,2]
[361917554,1747889450556,-144.20773502,0.00024657,2]
[361917555,1747889450768,-285.79226498,0.00024657,2]
[361917556,1747889450777,-2989.36480502,0.00024657,2]
[361917557,1747889451053,-430.0,0.00021917,2]
[361917558,1747889451062,-430.0,0.00021917,2]
[361917559,1747889451072,-133.7199999,0.00022191,2]
[361917560,1747889451219,-296.2800001,0.00022191,2]
[361917561,1747889451229,-430.0,0.00022191,2]
[361917562,1747889451239,-430.0,0.00022191,2]
[361917563,1747889451250,-151.96313381,0.00022465,2]
[361917564,1747889451277,-278.03686619,0.00022465,2]
[361917565,1747889451287,-430.0,0.00022465,2]
[361917566,1747889451296,-430.0,0.00022465,2]
[361917567,1747889451305,-314.54559427,0.00022482,3]
[361917568,1747889451314,-430.0,0.00022739,2]
[361917569,1747889451324,-430.0,0.00022739,2]
[361917570,1747889451333,-360.68270967,0.00023013,2]
[361917571,1747889451342,-430.0,0.00023013,2]
[361917572,1747889451352,-287.8,0.00023287,2]
[361917573,1747889451361,-7752.93371547,0.00024657,2]
[361917574,1747889451378,-472.12814731,0.00021917,2]
[361917575,1747889451387,-7694.13147951,0.00024657,2]
[361917576,1747889451397,-1264.28,0.00024657,2]
[361917577,1747889451407,-1172.25,0.00024657,2]
[361917578,1747889451417,-559.52,0.00024657,2]
[361917579,1747889451426,-430.0,0.00024657,2]
[361917580,1747889451435,-430.0,0.00024657,2]
[361917581,1747889451445,-581.06,0.00024657,2]
[361917582,1747889451455,-430.0,0.00024657,2]
[361917583,1747889451465,-1388.96,0.00024657,2]
[361917584,1747889451478,-334.89957067,0.00024657,2]
[361917585,1747889451490,-429.74042933,0.00024657,2]
[361917586,1747889451499,-540.48,0.00024657,2]
[361917587,1747889451509,-591.15,0.00024657,2]
[361917588,1747889451519,-2232.82,0.00024657,2]
[361917589,1747889451528,-440.73,0.00024657,2]
[361917590,1747889451538,-430.0,0.00024657,2]
[361917591,1747889451548,-430.0,0.00024657,2]
[361917592,1747889451558,-430.0,0.00024657,2]
[361917593,1747889451568,-430.0,0.00024657,2]
[361917594,1747889451577,-430.0,0.00024657,2]
[361917595,1747889451588,-430.0,0.00024657,2]
[361917596,1747889451597,-430.0,0.00024657,2]
[361917597,1747889451607,-399.35,0.00024657,2]
[361917598,1747889451617,-430.0,0.00024657,2]
[361917599,1747889451626,-679.08,0.00024657,2]
[361917600,1747889451636,-756.12,0.00024657,2]
[361917601,1747889451646,-430.0,0.00024657,2]
[361917602,1747889451656,-430.0,0.00024657,2]
[361917603,1747889451666,-430.0,0.00024657,2]
[361917604,1747889451675,-430.0,0.00024657,2]
[361917605,1747889451685,-1732.63,0.00024657,2]
[361917606,1747889451694,-430.0,0.00024657,2]
[361917607,1747889451704,-500.0,0.00024658,2]
[361917608,1747889451714,-500.0,0.00024658,2]
[361917609,1747889451723,-500.0,0.00024658,2]
[361917610,1747889451733,-500.0,0.00024658,2]
[361917611,1747889451744,-500.0,0.00024658,2]
[361917612,1747889451753,-500.0,0.00024658,2]
[361917613,1747889451763,-500.0,0.00024658,2]
[361917614,1747889451772,-500.0,0.00024658,2]
[361917615,1747889451781,-500.0,0.00024658,2]
[361917616,1747889451791,-500.0,0.00024658,2]
[361917617,1747889451801,-500.0,0.00024658,2]
[361917618,1747889451810,-500.0,0.00024658,2]
[361917619,1747889451820,-500.0,0.00024658,2]
[361917620,1747889451829,-398.41489891,0.00024658,2]
[361917621,1747889451840,-500.0,0.00024658,2]
[361917622,1747889451850,-1660.30624673,0.00024693,11]
[361917623,1747889451860,-5149.93,0.000247,7]
[361917624,1747889451870,-960.0,0.00024734,2]
[361917625,1747889451879,-711.797,0.00024734,2]
[361917626,1747889451888,-150.24,0.00024734,2]
[361917627,1747889451898,-404.0,0.00024734,2]
[361917628,1747889451907,-488.74977138,0.00024736,2]
[361917629,1747889451917,-159.05485592,0.00024795,2]
[361917630,1747889451927,-151.0,0.000248,6]
[361917631,1747889451937,-889.7797958,0.00024807,2]
[361917632,1747889451947,-150.0,0.00024817,2]
[361917633,1747889451957,-1660.30624673,0.00024831,12]
[361917634,1747889451967,-49163.92758117,0.000249,2]
[361917643,1747889574998,1200.0,0.00015,2]
[361917648,1747889912576,168.590371,0.00013699,2]
[361917651,1747889926177,-290.2095233,0.00020737,2]
[361917652,1747889939433,-298.6558789,0.00020737,2]
[361917653,1747889947000,-250.0,0.00020737,2]
[361917654,1747890030253,-300.0,0.00020949,2]
[361917655,1747890030277,-300.0,0.00020949,2]
[361917656,1747890030300,-300.0,0.00020949,2]
[361917657,1747890030322,-300.0,0.00020949,2]
[361917658,1747890030343,-500.0,0.00020949,2]
[361917659,1747890030366,-500.0,0.00020949,2]
[361917660,1747890030389,-500.0,0.00020949,2]
[361917661,1747890030412,-500.0,0.00020949,2]
[361917662,1747890030434,-1200.0,0.00020949,2]
[361917663,1747890030456,-500.0,0.00020949,2]
[361917664,1747890030479,-500.0,0.00020949,2]
[361917665,1747890030501,-500.0,0.00020949,2]
[361917666,1747890030522,-500.0,0.00020949,2]
[361917667,1747890030545,-1600.0,0.00020951,2]
[361917668,1747890092131,-8000.0,0.00020951,2]
[361917669,1747890174281,-850.9768659,0.00020951,2]
[361917670,1747890174303,-825.0595699,0.00021264,2]
[361917671,1747890174325,-7366.2619626,0.00021453,2]
[361917672,1747890174348,-189.179,0.00021603,2]
[361917673,1747890174370,-300.0,0.00021899,2]
[361917674,1747890174397,-1549.61916388,0.000219,6]
[361917675,1747890174422,-500.0,0.00021916,2]
[361917676,1747890174444,-500.0,0.00021916,2]
[361917677,1747890174466,-280.86253837,0.00021916,2]
[361917678,1747890174490,-383.07852437,0.00021916,2]
[361917679,1747890174512,-500.0,0.00021916,2]
[361917680,1747890174535,-430.0,0.00021917,2]
[361917681,1747890174556,-430.0,0.00021917,2]
[361917682,1747890174577,-430.0,0.00021917,2]
[361917683,1747890174599,-430.0,0.00021917,2]
[361917684,1747890174620,-430.0,0.00021917,2]
[361917685,1747890174642,-401.10311682,0.00021917,2]